Cogmind - Beta 13 @@@ ROGUE MODE // 2024.04.04 @ 00:27:41 Player: Camoedine Result: Destroyed by G-34 Mercenary with Small Laser Performance ------------- Evolutions (0) 0 Regions Visited (1) 200 Robots Destroyed (37) 185 Value Destroyed (677) 677 Prototype IDs (0) 0 Alien Tech Used (0) 0 Bonus (0) 0 TOTAL SCORE: 1062 Bonus ------- None Cogmind --------- Core Integrity 0/250 Matter 292/300 Energy 98/100 System Corruption 0% Temperature Cool (6) Movement Walking (400) Ox4 Location -10/Materials Parts ------- > --- POWER (1) -------- Backup Power I > --- PROPULSION (2) --- Aluminum Leg Aluminum Leg > --- UTILITY (2) ------ Huge Storage Unit Tractor Beam > --- WEAPON (2) ------- Light Cannon > --- INVENTORY (25) --- Ion Engine Ion Engine Ion Engine Ion Engine Light Ion Engine Light Ion Engine Light Ion Engine Light Treads Aluminum Leg Wheel Wheel Compact Wheel Compact Wheel Large Storage Unit High-capacity Matter Pod (50) Structural Scanner Visual Processing Unit Signal Interpreter Terrain Scanner Targeting Computer Power Shielding Light Armor Plating Tractor Beam Small Laser Light Cannon Peak State ------------ > --- POWER ------------ Backup Power I > --- PROPULSION ------- Aluminum Leg Aluminum Leg > --- UTILITY ---------- Huge Storage Unit Light Armor Plating > --- WEAPON ----------- Small Laser Assault Rifle > --- INVENTORY -------- Ion Engine Ion Engine Light Ion Engine Light Treads Aluminum Leg Wheel Wheel Compact Wheel Compact Wheel Large Storage Unit Structural Scanner Visual Processing Unit Signal Interpreter Terrain Scanner Tractor Beam Small Laser Light Cannon Light Cannon Light Cannon [Rating: 9] Favorites ----------- Power Backup Power I Engine Backup Power I Propulsion Aluminum Leg Leg Aluminum Leg Utility Huge Storage Unit Device Tractor Beam Storage Huge Storage Unit Protection Light Armor Plating Weapon Assault Rifle Energy Gun Small Laser Ballistic Gun Assault Rifle Ballistic Cannon Light Cannon Build | -11 -10 ------- Run | Yrd Mat Slots Evolved . | . . Power . | . . Propulsion . | . . Utility . | . . Weapon . | . . Parts Attached 18 | 5 13 Power 2 | 1 1 Engine 2 | 1 1 Core . | . . Reactor . | . . Propulsion 7 | 2 5 Treads . | . . Leg 7 | 2 5 Wheel . | . . Hover . | . . Flight . | . . Utility 4 | . 4 Device 2 | . 2 Storage 1 | . 1 Processor . | . . Hackware . | . . Protection 1 | . 1 Artifact . | . . Weapon 5 | 2 3 Energy Gun 2 | 1 1 Energy Cannon . | . . Ballistic Gun 2 | 1 1 Ballistic Cannon 1 | . 1 Launcher . | . . Special Weapon . | . . Impact Weapon . | . . Slashing Weapon . | . . Piercing Weapon . | . . Special Melee Weapon . | . . Unidentified Prototypes . | . . Parts Lost 5 | . 5 Power 1 | . 1 Propulsion . | . . Utility 2 | . 2 Weapon 2 | . 2 Highest Loss Streak 2 | . 2 To Critical Strikes . | . . Average Slot Usage (%) 93 | . 93 Engine 11 | . 11 Leg 28 | . 28 Device 1 | . 1 Storage 13 | . 13 Protection 9 | . 9 Energy Gun 11 | . 11 Ballistic Gun 13 | . 13 Ballistic Cannon 1 | . 1 Naked Turns . | . . Heaviest Build 89 | 7 89 Greatest Support 20 | 20 20 Greatest Overweight (x) 4 | . 4 Average Overweight (x) 3 | . 3 Largest Inventory Capacity 25 | 5 25 Average Capacity 24 | 5 24 Most Carried 25 | 5 25 Average Carried 11 | 2 12 Final Capacity 25 | 5 25 Final Carried 25 | 5 25 Class Distribution -------------------- 100% | Mutant Dominant Class ---------------- Mutant | -10/Materials Resources | -11 -10 ----------- Run | Yrd Mat Matter Collected 804 | 259 545 Remotely 98 | . 98 Salvage Created 1164 | 50 1114 Parts 89 | 4 85 Haulers Intercepted . | . . Recyclers Shooed 2 | . 2 Parts Field Recycled . | . . Retrieved Matter . | . . Parts Self-Destructed . | . . Prevented . | . . Kills | -11 -10 ------- Run | Yrd Mat Combat Hostiles Destroyed 17 | 1 16 Guns 15 | 1 14 Cannons 2 | . 2 Classes Destroyed 9 | 1 8 Worker 6 | . 6 Builder 4 | . 4 Tunneler 2 | . 2 Recycler 3 | . 3 Mechanic 1 | . 1 Operator 1 | . 1 Watcher 3 | . 3 Swarmer 3 | . 3 Grunt 14 | 1 13 Best Kill Streak 6 | 1 6 Combat Bots Only 3 | 1 3 Max Kills in Single Turn 2 | 1 2 Gunslinging . | . . Exploded . | . . Melee . | . . Uniques/NPCs Destroyed . | . . Combat | -11 -10 -------- Run | Yrd Mat Hostile Shots Fired 136 | 4 132 Missed 41 | 1 40 Damage Taken 1090 | 34 1056 Core 250 | 11 239 Absorbed by Shields . | . . Core Remaining (%) 95 | 95 . Volleys Fired 119 | 3 116 Largest 2 | 2 2 Hottest 60 | 60 60 Shots Fired 228 | 6 222 Gun 218 | 6 212 Cannon 10 | . 10 Launcher . | . . Special . | . . Kinetic 129 | 3 126 Thermal 67 | . 67 Explosive . | . . Electromagnetic 32 | 3 29 Robot Hit Streak 13 | 3 13 Robot Miss Streak 3 | 2 3 Penetration Max . | . . Secondary Targets 3 | . 3 Max Gunslinging Chain 1 | . 1 Shots Hit Robots 139 | 4 135 Core Hits 56 | 2 54 Critical Kills . | . . Critical Parts Destroyed . | . . Critical Strikes . | . . Melee Attacks . | . . Impact . | . . Slashing . | . . Piercing . | . . Sneak Attacks . | . . Combat Hostiles . | . . Follow-up Attacks . | . . Damage Inflicted 1794 | 47 1747 Guns 1649 | 47 1602 Cannons 135 | . 135 Explosions . | . . Melee . | . . Ramming 10 | . 10 Kinetic 1014 | 22 992 Thermal 456 | . 456 Explosive . | . . Electromagnetic 314 | 25 289 Impact . | . . Slashing . | . . Piercing . | . . Highest Corruption . | . . Average Corruption . | . . Corruption Purged . | . . Corruption Blocked . | . . Overload Shots . | . . Overflow Damage . | . . Projectiles . | . . Explosions . | . . Melee . | . . Knockbacks 3 | . 3 Impact . | . . Kinetic 2 | . 2 Secondary 1 | . 1 Self-Inflicted Damage . | . . Shots . | . . Rammed . | . . Targets Rammed 4 | . 4 Kicked 4 | . 4 Crushed . | . . Highest Temperature 54 | 18 54 Average Temperature 11 | 14 11 Received Heat Transfer 567 | 18 549 Siege Activations . | . . Robots Corrupted . | . . Combat Hostiles . | . . Parts Fried 1 | . 1 Impact Corruptions . | . . Robots Melted . | . . Combat Hostiles . | . . Parts Melted 2 | . 2 Heat Transferred 1050 | . 1050 Parts Sabotaged . | . . Parts Stolen . | . . Parts Stripped . | . . Power Chain Reactions . | . . Alert | -11 -10 ------- Run | Yrd Mat Peak Influence 164 | 20 164 Initial 13 | . 13 Average 44 | 4 45 Maximum Alert Level . | . . Low Security (%) 100 | 100 100 Level 1 . | . . Level 2 . | . . Level 3 . | . . Level 4 . | . . Level 5 . | . . High Security . | . . Max Security . | . . Squads Dispatched 4 | . 4 Investigation 2 | . 2 Extermination . | . . Reinforcement 2 | . 2 Assault . | . . Garrison . | . . Intercept . | . . Searches Triggered . | . . Construction Impeded . | . . Haulers Reinforced . | . . Active Scanning Responses . | . . Cargo Convoy Interrupts . | . . Stealth | -11 -10 --------- Run | Yrd Mat Distress Signals 5 | . 5 Communications Jammed . | . . Distress Signals . | . . Times Spotted 41 | 1 40 Peak Tracking Total 7 | 1 7 Tactical Retreats . | . . Traps | -11 -10 ------- Run | Yrd Mat Traps Triggered 1 | . 1 Indirectly . | . . Trap Hack Attempts . | . . Triggered . | . . Disarmed . | . . Reprogrammed . | . . Reused . | . . Traps Extracted . | . . Installed . | . . Triggered . | . . Machines | -11 -10 ---------- Run | Yrd Mat Machines Disabled 1 | . 1 Max in Single Turn 1 | . 1 Machines Repaired . | . . Machines Dismantled . | . . Machines Sabotaged . | . . Overloaded Fab Kills . | . . Hacking | -11 -10 --------- Run | Yrd Mat Machines Accessed 3 | . 3 Terminals 2 | . 2 Fabricators . | . . Repair Stations 1 | . 1 Recycling Units . | . . Scanalyzers . | . . Garrison Access . | . . Total Hacks 10 | . 10 Successful 6 | . 6 Failed 4 | . 4 Catastrophic 1 | . 1 Database Lockouts . | . . Manual . | . . Terminals 8 | . 8 Fabricators . | . . Repair Stations 2 | . 2 Recycling Units . | . . Scanalyzers . | . . Garrison Access . | . . Terminal Hacks 5 | . 5 Robot Analysis 1 | . 1 Emergency Access Points 1 | . 1 Alert Level 1 | . 1 Recall Investigation 1 | . 1 Zone Layout 1 | . 1 Fabricator Hacks . | . . Repair Station Hacks 1 | . 1 Refit 1 | . 1 Recycling Unit Hacks . | . . Scanalyzer . | . . Garrison Access Hacks . | . . Unauthorized Hacks . | . . Terminals . | . . Fabricators . | . . Repair Stations . | . . Recycling Units . | . . Scanalyzers . | . . Garrison Access . | . . Data Cores Recovered . | . . Used . | . . Hacking Detections 3 | . 3 Full Trace Events 2 | . 2 Feedback Events . | . . Feedback Blocked . | . . Robot Schematics Acquired . | . . Robots Built . | . . Authchips . | . . Time . | . . Total Robot Build Rating . | . . Part Schematics Acquired . | . . Parts Built . | . . Authchips . | . . Time . | . . Total Part Build Rating . | . . Parts Repaired . | . . Time . | . . Parts Recycled . | . . Recycled Matter . | . . Retrieved Matter . | . . Retrieved Components . | . . Parts Scanalyzed . | . . Part Schematics Acquired . | . . Parts Damaged . | . . Bothacking | -11 -10 ------------ Run | Yrd Mat Used RIF Installer . | . . Robots Hacked . | . . Non-combat . | . . Combat . | . . Robot Hacks Applied . | . . Relay Couplers Released . | . . Fabnet Peak Effective % . | . . Robots Rewired . | . . Allies Hacked . | . . Hacks Repelled . | . . Allies | -11 -10 -------- Run | Yrd Mat Total Allies . | . . Largest Group . | . . Highest-Rated Group . | . . Highest-Rated Ally . | . . Total Orders . | . . Ally Attacks . | . . Total Damage . | . . Kills . | . . Allies Corrupted . | . . Allies Melted . | . . Intel | -11 -10 ------- Run | Yrd Mat Robot Analysis Total 1 | . 1 Derelict Logs Recovered . | . . Drone Launches . | . . Drone Recoveries . | . . Exploration | -11 -10 ------------- Run | Yrd Mat Turns Passed 4021 | 120 3901 Spaces Moved 987 | 91 896 Core 21 | 21 . Treads . | . . Legs 966 | 70 896 Wheels . | . . Hover . | . . Flight . | . . Fastest Speed 50 | 50 120 Average Speed 363 | 103 389 Slowest Speed 400 | 120 400 Overloaded Moves . | . . Propulsion Burnouts . | . . Robots Hopped . | . . Cave-ins Triggered . | . . Exploration Rate (%) 43 | 5 81 Regions Visited 1 Branch Regions . Pre-discovered Areas . | . . Known Exits Taken . | . . Unknown Exits Taken 1 | 1 . Scrap Searched . | . . Spaces Dug . | . . Terrain Destroyed . | . . Melee . | . . Projectile . | . . AOE . | . . Terrain Rammed . | . . Walls Destroyed . | . . Machines Disabled . | . . Actions | -11 -10 --------- Run | Yrd Mat Total 1185 | 110 1075 Wait 2 | 2 . Move 986 | 90 896 Hop . | . . Pick Up 45 | 10 35 Fast Attach 2 | . 2 Attach 12 | 5 7 Detach . | . . Swap 4 | . 4 Drop 11 | . 11 Fire 119 | 3 116 Melee . | . . Ram . | . . Kick 4 | . 4 Crush . | . . Escape Stasis . | . . Rewire . | . . Trap . | . . Miscellaneous . | . . Route ------- -11/Scrapyard -10/Materials (discovered 4 exits: [*Mat x2] / [*Min] / [*Sub]) History --------- Turn | Location | Event 2 | -11/Scrapyard | Met Revision 17 81 | -11/Scrapyard | Discovered new exit (range 8) 121 | -11/Scrapyard | Entered Materials 313 | -10/Materials | Build established: Mutant 580 | -10/Materials | Core integrity fell below 50% 1000 | -10/Materials | Discovered new exit (range 15) 2090 | -10/Materials | Discovered new exit (range 15) 3440 | -10/Materials | Discovered new exit (range 8) 3468 | -10/Materials | Discovered new exit (range 8) 3616 | -10/Materials | Core integrity fell below 20% 4022 | -10/Materials | Destroyed by G-34 Mercenary with Small Laser Last Messages --------------- (47,16) Map updated. >>Recall(Investigation) Establishing remote squad link... No tasked investigation squads found. 03982_ ALERT: Suspicious activity at Terminal M001. Dispatching Investigation squad. 03994_ R-06 Scavenger collects Lgt. Cannon. 04006_ Kicked T-07 Excavator. 04006_ T-07 Excavator sends out distress signal. 04011_ Acquired 1 matter. 04012_ G-34 Mercenary destroyed. 04012_ R-06 Scavenger collects Sml. Laser. 04013_ Acquired 33 matter. 04017_ R-06 Scavenger collects Aluminum Leg. 04017_ K-01 Serf collects debris. 04018_ G-34 Mercenary destroyed. 04019_ Acquired 34 matter. 04020_ K-01 Serf collects debris. 04022_ G-34 Mercenary knocked back. Map ----- +----------------------------------------------------+ | ???????####### # #????????????????????????? | | ???????# ## # < #????????????????????????? | | ???????# ## # #????????????????????????? | | ???????# ##+##+### /????????????????????????? | | ???????# ## #?????????????????#####??? | | ???????# + #????????????????##"""##?? | | #??????# ## #???????????????##"|||"##? | | ##?????# ######### #?######???###??#"" ""#? | | !#?????# #???????# #? #####<##?# #? | | ####### #???????# # # #?# < #? | | # ###+########## + # #?# #? | | # + #?# #? | | % # # #?## #?? | | % # # #??## ##?? | | ## ############### ######+#####+####### # | | ####+#####????########+##### + | | ! #????# # # | | #????# # # | | #????# #% #########+######? | | ! #????# # #????# #????? | | #????# %+% #????#== #?????? | | #????############## #????#"" #?????? | | #??????# ##% ##???#"Y #?????? | | % #??????# "T" """ # #???#"" #?????? | | ##########??????# """ #r #???# #?????? | | ##########??????# """@/g T #???########?????? | | #??????# =#k #????????????????? | | """ """ #??????# # u #????????????????? | | """ """ #??????# ! ### ###????????????????? | | """ """ #??????# ! #?# #?########?????????? | | #??????#############/### ######????? | | #?????????# %% # # ????? | | #?????????# """ "" # """ #""" ????? | | #?######### """""""" # """ #""" ????? | | ####+####### # """"" !# """ #""" ????? | | ^ # # = # ? ????? | | # """ #######+########+#### ????? | | """^ ]]]# """ # *%=% % [ % = ## ????? | | """ ] # """ # !=!= % %% ########???? | | """ ] # + =% ! % ! # = #???? | | ! # # ###+######## #= #???? | | #! # #??????????# # / #???? | | # "T"?# #??????????# + """ #???? | | # """?# #??????????# # """ # ??? | | # ??# #??????????# # """ # #?? | | #############??# #??????????## ######### ?? | | #??????????????# #???????????# ######### #?? | | #??????????????# #???????????# + # ### | | #??????????????# #???????????# # + | | ######?????????# #???????????# # # | +----------------------------------------------------+ Best States ------------- Heat Dissipation 25 Energy Generation 10 Energy Capacity 125 Matter Stores 300 Matter Capacity 300 Sight Range 16 Terrain Scan Density 10 ECM Strength 1 Armor Coverage 150 Evasion (%) 55 Item Schematics ----------------- None Robot Schematics ------------------ None Fabricated ------------ Nothing Alien Tech Used ----------------- None Achievements -------------- Crack Shot One Hack Too Far Challenges ------------ None Game ------ Seed SuperchargedMakeshiftOptics Manual? 0 Play Time 00:23:31 Cumulative 0.8 hours Start 2024.04.04 @ 00:04:24 End 2024.04.04 @ 00:27:41 Sessions 1 Manual Loads 0 Difficulty Rogue Special Mode None Game No. 2 Rogue 2 Adventurer 0 Explorer 0 Win Type - Total 0 Types 0/0/0/0/0/0/0/0/0 Lore% 0 Gallery% 3 Achievement% 2 Wizard Run 0 Options --------- Layout 0 ASCII 0 Keyboard 0 Movement Mouse Keybinds 0 Fullscreen 2 Font 24/X11 Map View 76x50 Zoom Use 0% Tactical HUD 1 Map Filters NONE Filters NONE Steam 1 RUN: 4048a559-6028-40d6-9a3a-34340b5eda3e